fUSD/lending_fUSD_20240502
["ID","MTS","AMOUNT","RATE_DAILY","PERIOD"]
[325288962,1714683057183,-500.0,0.0003041,2]
[325288963,1714683057194,-500.0,0.0003041,2]
[325288964,1714683057204,-500.0,0.0003041,2]
[325288965,1714683057214,-770.23,0.0003041,2]
[325288966,1714683057233,-500.0,0.0003041,2]
[325288967,1714683057246,-828.87,0.0003041,2]
[325288968,1714683057255,-1610.86,0.0003041,2]
[325288969,1714683057264,-565.44,0.0003041,2]
[325288970,1714683057275,-500.0,0.0003041,2]
[325288971,1714683057284,-500.0,0.0003041,2]
[325288972,1714683057293,-585.07,0.0003041,2]
[325288973,1714683057303,-500.0,0.0003041,2]
[325288974,1714683057312,-1250.61,0.0003041,2]
[325288975,1714683057321,-762.12,0.0003041,2]
[325288976,1714683057331,-687.63,0.0003041,2]
[325288977,1714683057341,-625.06,0.0003041,2]
[325288978,1714683057350,-960.08,0.0003041,2]
[325288979,1714683057360,-683.05,0.0003041,2]
[325288980,1714683057371,-500.0,0.0003041,2]
[325288981,1714683057382,-791.88,0.0003041,2]
[325288982,1714683057392,-952.61,0.0003041,2]
[325288983,1714683057402,-500.0,0.0003041,2]
[325288984,1714683057412,-500.0,0.0003041,2]
[325288985,1714683057422,-500.0,0.0003041,2]
[325288986,1714683057432,-580.45,0.0003041,2]
[325288987,1714683057442,-1307.0,0.0003041,2]
[325288988,1714683057452,-605.99,0.0003041,2]
[325288989,1714683057463,-500.0,0.0003041,2]
[325288990,1714683057475,-500.0,0.0003041,2]
[325288991,1714683057485,-930.78,0.0003041,2]
[325288992,1714683057495,-500.0,0.0003041,2]
[325288993,1714683057505,-524.94,0.0003041,2]
[325288994,1714683057516,-541.3,0.0003041,2]
[325288995,1714683057526,-500.0,0.0003041,2]
[325288996,1714683057539,-740.85,0.0003041,2]
[325288997,1714683057548,-742.65,0.0003041,2]
[325288998,1714683057560,-500.0,0.0003041,2]
[325288999,1714683057571,-972.98,0.0003041,2]
[325289000,1714683057583,-1262.99,0.0003041,2]
[325289001,1714683057592,-514.87,0.0003041,2]
[325289002,1714683057602,-1002.78,0.0003041,2]
[325289003,1714683057611,-500.0,0.0003041,2]
[325289004,1714683057620,-500.0,0.0003041,2]
[325289005,1714683057630,-701.34,0.0003041,2]
[325289006,1714683057639,-604.94,0.0003041,2]
[325289007,1714683057649,-500.0,0.0003041,2]
[325289008,1714683057658,-500.0,0.0003041,2]
[325289009,1714683057669,-500.0,0.0003041,2]
[325289010,1714683057679,-500.0,0.0003041,2]
[325289011,1714683057690,-718.95,0.0003041,2]
[325289012,1714683057700,-500.0,0.0003041,2]
[325289013,1714683057709,-500.0,0.0003041,2]
[325289014,1714683057720,-500.0,0.0003041,2]
[325289015,1714683057730,-851.2,0.0003041,2]
[325289016,1714683057740,-565.11,0.0003041,2]
[325289017,1714683057750,-500.0,0.0003041,2]
[325289018,1714683057766,-6873.07,0.0003041,2]
[325289019,1714683057775,-991.31,0.0003041,2]
[325289020,1714683057785,-500.0,0.0003041,2]
[325289021,1714683057794,-1034.58,0.0003041,2]
[325289022,1714683057805,-500.0,0.0003041,2]
[325289023,1714683057814,-500.0,0.0003041,2]
[325289024,1714683057824,-546.39,0.0003041,2]
[325289025,1714683057834,-500.0,0.0003041,2]
[325289026,1714683057843,-500.0,0.0003041,2]
[325289027,1714683057853,-1865.11,0.0003041,2]
[325289028,1714683057863,-3023.14,0.0003041,2]
[325289029,1714683057872,-500.0,0.0003041,2]
[325289030,1714683057881,-500.0,0.0003041,2]
[325289031,1714683057890,-3465.64,0.0003041,2]
[325289032,1714683057900,-500.0,0.0003041,2]
[325289033,1714683057910,-187.53001277,0.0003041,2]
[325289034,1714683057919,-506.02340047,0.0003041,2]
[325289035,1714683057928,-738.49,0.0003041,2]
[325289036,1714683057938,-500.0,0.0003041,2]
[325289037,1714683057947,-1106.89,0.0003041,2]
[325289038,1714683057956,-829.32,0.0003041,2]
[325289039,1714683057966,-761.66,0.0003041,2]
[325289040,1714683057975,-779.97,0.0003041,2]
[325289041,1714683057984,-902.65,0.0003041,2]
[325289042,1714683057994,-642.7,0.0003041,2]
[325289043,1714683058003,-501.27,0.0003041,2]
[325289044,1714683058012,-1566.82,0.0003041,2]
[325289045,1714683058022,-9353.96,0.0003041,2]
[325289046,1714683058032,-500.0,0.0003041,2]
[325289047,1714683058041,-774.51,0.0003041,2]
[325289048,1714683058051,-590.33,0.0003041,2]
[325289049,1714683058060,-500.0,0.0003041,2]
[325289050,1714683058069,-1525.66,0.0003041,2]
[325289051,1714683058078,-500.0,0.0003041,2]
[325289052,1714683058088,-500.0,0.0003041,2]
[325289053,1714683058097,-1269.77,0.0003041,2]
[325289054,1714683058108,-500.0,0.0003041,2]
[325289055,1714683058118,-500.0,0.0003041,2]
[325289056,1714683058128,-500.0,0.0003041,2]
[325289057,1714683058139,-2731.24,0.0003041,2]
[325289058,1714683058151,-500.0,0.0003041,2]
[325289059,1714683058162,-500.0,0.0003041,2]
[325289060,1714683058172,-1488.34,0.0003041,2]
[325289061,1714683058182,-3356.41,0.0003041,2]
[325289062,1714683058192,-500.0,0.0003041,2]
[325289063,1714683058202,-573.14,0.0003041,2]
[325289064,1714683058211,-635.45,0.0003041,2]
[325289065,1714683058220,-500.0,0.0003041,2]
[325289066,1714683058230,-500.0,0.0003041,2]
[325289067,1714683058239,-1817.56,0.0003041,2]
[325289068,1714683058249,-500.0,0.0003041,2]
[325289069,1714683058258,-500.0,0.0003041,2]
[325289070,1714683058267,-500.0,0.0003041,2]
[325289071,1714683058276,-4081.46,0.0003041,2]
[325289072,1714683058286,-1677.29,0.0003041,2]
[325289073,1714683058300,-537.36,0.0003041,2]
[325289074,1714683058310,-500.0,0.0003041,2]
[325289075,1714683058320,-1134.94,0.0003041,2]
[325289076,1714683058329,-622.17663345,0.0003041,2]
[325289077,1714683058339,-968.31,0.0003041,2]
[325289078,1714683058349,-1335.63,0.0003041,2]
[325289079,1714683058359,-3736.4,0.0003041,2]
[325289080,1714683058368,-500.0,0.0003041,2]
[325289081,1714683058378,-568.92,0.0003041,2]
[325289082,1714683058388,-500.0,0.0003041,2]
[325289083,1714683058398,-554.42,0.0003041,2]
[325289084,1714683058407,-652.23,0.0003041,2]
[325289085,1714683058417,-500.0,0.0003041,2]
[325289086,1714683058426,-500.0,0.0003041,2]
[325289087,1714683058436,-705.57,0.0003041,2]
[325289088,1714683058452,-500.0,0.0003041,2]
[325289089,1714683058461,-957.61,0.0003041,2]
[325289090,1714683058471,-1623.19,0.0003041,2]
[325289091,1714683058481,-2555.94,0.0003041,2]
[325289092,1714683058491,-500.0,0.0003041,2]
[325289093,1714683058500,-500.0,0.0003041,2]
[325289094,1714683058510,-1026.44,0.0003041,2]
[325289095,1714683058519,-500.0,0.0003041,2]
[325289096,1714683058529,-1517.33,0.0003041,2]
[325289097,1714683058538,-718.46,0.0003041,2]
[325289098,1714683058548,-1439.64,0.0003041,2]
[325289099,1714683058557,-5095.95,0.0003041,2]
[325289100,1714683058567,-1327.2,0.0003041,2]
[325289101,1714683058576,-1178.27,0.0003041,2]
[325289102,1714683058588,-502.35,0.0003041,2]
[325289103,1714683058597,-562.49,0.0003041,2]
[325289104,1714683058606,-758.48,0.0003041,2]
[325289105,1714683058616,-551.3,0.0003041,2]
[325289106,1714683058625,-500.0,0.0003041,2]
[325289107,1714683058635,-727.6,0.0003041,2]
[325289108,1714683058644,-557.06,0.0003041,2]
[325289109,1714683058654,-5445.33,0.0003041,2]
[325289110,1714683058663,-762.17,0.0003041,2]
[325289111,1714683058673,-45303.37,0.0003041,2]
[325289112,1714683058682,-500.0,0.0003041,2]
[325289113,1714683058691,-500.0,0.0003041,2]
[325289114,1714683058701,-1363.55,0.0003041,2]
[325289115,1714683058711,-2490.82,0.0003041,2]
[325289116,1714683058720,-500.0,0.0003041,2]
[325289117,1714683058730,-500.0,0.0003041,2]
[325289118,1714683058740,-2769.91,0.0003041,2]
[325289119,1714683058749,-3004.84,0.0003041,2]
[325289120,1714683058760,-500.0,0.0003041,2]
[325289121,1714683058773,-1062.14,0.0003041,2]
[325289122,1714683058782,-743.02,0.0003041,2]
[325289123,1714683058792,-500.0,0.0003041,2]
[325289124,1714683058802,-15831.97,0.0003041,2]
[325289125,1714683058812,-500.0,0.0003041,2]
[325289126,1714683058822,-2761.68,0.0003041,2]
[325289127,1714683058834,-1113.43,0.0003041,2]
[325289128,1714683058845,-1501.38,0.0003041,2]
[325289129,1714683058855,-500.0,0.0003041,2]
[325289130,1714683058865,-500.0,0.0003041,2]
[325289131,1714683058875,-1216.58,0.0003041,2]
[325289132,1714683058885,-1371.34,0.0003041,2]
[325289133,1714683058895,-906.68,0.0003041,2]
[325289134,1714683058904,-865.05,0.0003041,2]
[325289135,1714683058913,-768.24,0.0003041,2]
[325289136,1714683058923,-2376.95,0.0003041,2]
[325289137,1714683058932,-3370.97,0.0003041,2]
[325289138,1714683058942,-1354.24,0.0003041,2]
[325289139,1714683058951,-500.0,0.0003041,2]
[325289140,1714683058961,-1029.53,0.0003041,2]
[325289141,1714683058970,-500.0,0.0003041,2]
[325289142,1714683058980,-2960.03,0.0003041,2]
[325289143,1714683058989,-500.0,0.0003041,2]
[325289144,1714683058999,-1764.92,0.0003041,2]
[325289145,1714683059009,-1009.68,0.0003041,2]
[325289146,1714683059018,-480.23218161,0.0003041,2]
[325289147,1714683059027,-605.13,0.0003041,2]
[325289148,1714683059037,-1456.63,0.0003041,2]
[325289149,1714683059047,-500.0,0.0003041,2]
[325289150,1714683059058,-500.0,0.0003041,2]
[325289151,1714683059068,-500.0,0.0003041,2]
[325289152,1714683059078,-500.0,0.0003041,2]
[325289153,1714683059089,-500.0,0.0003041,2]
[325289154,1714683059099,-7969.41,0.0003041,2]
[325289155,1714683059109,-500.0,0.0003041,2]
[325289156,1714683059119,-500.0,0.0003041,2]
[325289157,1714683059130,-500.0,0.0003041,2]
[325289158,1714683059141,-955.39,0.0003041,2]
[325289159,1714683059151,-2243.19,0.0003041,2]
[325289160,1714683059161,-676.29,0.0003041,2]
[325289161,1714683059172,-501.05746559,0.0003041,2]
[325289162,1714683059183,-1270.27,0.0003041,2]
[325289163,1714683059193,-500.0,0.0003041,2]
[325289164,1714683059202,-500.0,0.0003041,2]
[325289165,1714683059212,-500.0,0.0003041,2]
[325289166,1714683059222,-8073.81,0.0003041,2]
[325289167,1714683059231,-500.0,0.0003041,2]
[325289168,1714683059241,-758.21,0.0003041,2]
[325289169,1714683059250,-500.0,0.0003041,2]
[325289170,1714683059259,-500.0,0.0003041,2]
[325289171,1714683059270,-500.0,0.0003041,2]
[325289172,1714683059279,-821.97,0.0003041,2]
[325289173,1714683059289,-5493.82,0.0003041,2]
[325289174,1714683059298,-1718.49,0.0003041,2]
[325289175,1714683059308,-610.46,0.0003041,2]
[325289176,1714683059318,-500.0,0.0003041,2]
[325289177,1714683059329,-2570.96,0.0003041,2]
[325289178,1714683059340,-2831.85,0.0003041,2]
[325289179,1714683059349,-500.0,0.0003041,2]
[325289180,1714683059359,-1043.96,0.0003041,2]
[325289181,1714683059368,-537.84,0.0003041,2]
[325289182,1714683059378,-650.25,0.0003041,2]
[325289183,1714683059392,-9695.1,0.0003041,2]
[325289184,1714683059402,-941.56,0.0003041,2]
[325289185,1714683059413,-500.0,0.0003041,2]
[325289186,1714683059424,-540.05,0.0003041,2]
[325289187,1714683059434,-4089.27,0.0003041,2]
[325289188,1714683059443,-1263.89,0.0003041,2]
[325289189,1714683059453,-1574.56,0.0003041,2]
[325289190,1714683059462,-946.74,0.0003041,2]
[325289191,1714683059473,-2116.12,0.0003041,2]
[325289192,1714683059482,-833.0,0.0003041,2]
[325289193,1714683059493,-4373.06,0.0003041,2]
[325289194,1714683059504,-500.0,0.0003041,2]
[325289195,1714683059515,-500.0,0.0003041,2]
[325289196,1714683059525,-1640.29,0.0003041,2]
[325289197,1714683059536,-3018.57,0.0003041,2]
[325289198,1714683059546,-500.0,0.0003041,2]
[325289199,1714683059556,-989.93,0.0003041,2]
[325289200,1714683059566,-19891.27,0.0003041,2]
[325289201,1714683059576,-740.29,0.0003041,2]
[325289202,1714683059587,-2971.98,0.0003041,2]
[325289203,1714683059597,-548.43,0.0003041,2]
[325289204,1714683059607,-500.0,0.0003041,2]
[325289205,1714683059615,-1971.49,0.0003041,2]
[325289206,1714683059625,-500.0,0.0003041,2]
[325289207,1714683059635,-500.0,0.0003041,2]
[325289208,1714683059645,-927.39,0.0003041,2]
[325289209,1714683059657,-1288.02,0.0003041,2]
[325289210,1714683059668,-500.0,0.0003041,2]
[325289211,1714683059678,-817.28,0.0003041,2]
[325289212,1714683059688,-500.0,0.0003041,2]
[325289213,1714683059699,-3467.39,0.0003041,2]
[325289214,1714683059710,-500.0,0.0003041,2]
[325289215,1714683059721,-500.0,0.0003041,2]
[325289216,1714683059730,-166.99,0.0003041,2]
[325289217,1714683059741,-500.0,0.0003041,2]
[325289218,1714683059751,-500.0,0.0003041,2]
[325289219,1714683059766,-1615.23,0.0003041,2]
[325289220,1714683059776,-1258.21,0.0003041,2]
[325289221,1714683059785,-11495.52,0.0003041,2]
[325289222,1714683059795,-1011.03,0.0003041,2]
[325289223,1714683059807,-2771.84,0.0003041,2]
[325289224,1714683059816,-1378.34,0.0003041,2]
[325289225,1714683059825,-517.46428064,0.0003041,2]
[325289226,1714683059835,-500.0,0.0003041,2]
[325289227,1714683059846,-3318.29,0.0003041,2]
[325289228,1714683059855,-808.88,0.0003041,2]
[325289229,1714683059865,-12295.9,0.0003041,2]
[325289230,1714683059874,-2575.2,0.0003041,2]
[325289231,1714683059883,-1484.73,0.0003041,2]
[325289232,1714683059893,-511.28,0.0003041,2]
[325289233,1714683059902,-500.0,0.0003041,2]
[325289234,1714683059911,-1367.4,0.0003041,2]
[325289235,1714683059921,-500.0,0.0003041,2]
[325289236,1714683059930,-500.0,0.0003041,2]
[325289237,1714683059940,-500.0,0.0003041,2]
[325289238,1714683059949,-1154.2,0.0003041,2]
[325289239,1714683059959,-500.0,0.0003041,2]
[325289240,1714683059970,-500.0,0.0003041,2]
[325289241,1714683059981,-500.0,0.0003041,2]
[325289242,1714683059992,-500.0,0.0003041,2]
[325289243,1714683060002,-1248.55,0.0003041,2]
[325289244,1714683060012,-1392.65,0.0003041,2]
[325289245,1714683060022,-1440.14,0.0003041,2]
[325289246,1714683060032,-5923.2,0.0003041,2]
[325289247,1714683060041,-2102.3,0.0003041,2]
[325289248,1714683060051,-3535.22,0.0003041,2]
[325289249,1714683060062,-896.52,0.0003041,2]
[325289250,1714683060072,-2915.59,0.0003041,2]
[325289251,1714683060082,-639.04,0.0003041,2]
[325289252,1714683060091,-4754.88,0.0003041,2]
[325289253,1714683060100,-500.0,0.0003041,2]
[325289254,1714683060110,-500.0,0.0003041,2]
[325289255,1714683060119,-196.27134121,0.0003041,2]
[325289256,1714683060129,-57354.3,0.0003041,2]
[325289257,1714683060139,-1162.97,0.0003041,2]
[325289258,1714683060148,-5719.64,0.0003041,2]
[325289259,1714683060158,-2218.92,0.0003041,2]
[325289260,1714683060168,-898.07,0.0003041,2]
[325289261,1714683060178,-500.0,0.0003041,2]
[325289262,1714683060188,-2724.43,0.0003041,2]
[325289263,1714683060198,-500.0,0.0003041,2]
[325289264,1714683060208,-1758.7,0.0003041,2]
[325289265,1714683060411,-500.0,0.0003041,2]
[325289266,1714683060422,-500.0,0.0003041,2]
[325289267,1714683060432,-2516.79,0.0003041,2]
[325289268,1714683060441,-500.0,0.0003041,2]
[325289269,1714683060451,-7172.87,0.0003041,2]
[325289270,1714683060461,-500.0,0.0003041,2]
[325289271,1714683060470,-795.08,0.0003041,2]
[325289272,1714683060479,-500.0,0.0003041,2]
[325289273,1714683060488,-6587.91,0.0003041,2]
[325289274,1714683060498,-500.0,0.0003041,2]
[325289275,1714683060507,-3941.28,0.0003041,2]
[325289276,1714683060517,-500.0,0.0003041,2]
[325289277,1714683060527,-1364.01,0.0003041,2]
[325289278,1714683060537,-483.49598766,0.0003041,2]
[325289279,1714683060547,-500.0,0.0003041,2]
[325289280,1714683060556,-500.0,0.0003041,2]
[325289281,1714683060566,-500.0,0.0003041,2]
[325289282,1714683060575,-2146.19,0.0003041,2]
[325289283,1714683060587,-587.92,0.0003041,2]
[325289284,1714683060596,-556.18,0.0003041,2]
[325289285,1714683060606,-500.0,0.0003041,2]
[325289286,1714683060616,-500.0,0.0003041,2]
[325289287,1714683060625,-3731.86,0.0003041,2]
[325289288,1714683060635,-12785.55,0.0003041,2]
[325289289,1714683060644,-727.53,0.0003041,2]
[325289290,1714683060653,-500.0,0.0003041,2]
[325289291,1714683060663,-846.01,0.0003041,2]
[325289292,1714683060672,-533.28,0.0003041,2]
[325289293,1714683060682,-500.0,0.0003041,2]
[325289294,1714683060691,-18444.19,0.0003041,2]
[325289295,1714683060702,-3601.62,0.0003041,2]
[325289296,1714683060712,-2895.18,0.0003041,2]
[325289297,1714683060722,-500.0,0.0003041,2]
[325289298,1714683060733,-14107.57,0.0003041,2]
[325289299,1714683060743,-1353.44,0.0003041,2]
[325289300,1714683060754,-500.0,0.0003041,2]
[325289301,1714683060765,-500.0,0.0003041,2]
[325289302,1714683060777,-500.0,0.0003041,2]
[325289303,1714683060787,-500.0,0.0003041,2]
[325289304,1714683060796,-500.0,0.0003041,2]
[325289305,1714683060807,-500.0,0.0003041,2]
[325289306,1714683060816,-5327.9,0.0003041,2]
[325289307,1714683060826,-500.0,0.0003041,2]
[325289308,1714683060836,-545.66,0.0003041,2]
[325289309,1714683060846,-1745.58,0.0003041,2]
[325289310,1714683060856,-500.0,0.0003041,2]
[325289311,1714683060868,-488.63835308,0.0003041,2]
[325289312,1714683060878,-500.0,0.0003041,2]
[325289313,1714683060887,-3148.03,0.0003041,2]
[325289314,1714683060897,-500.0,0.0003041,2]
[325289315,1714683060906,-22162.2,0.0003041,2]
[325289316,1714683060915,-1367.75,0.0003041,2]
[325289317,1714683060925,-1652.07,0.0003041,2]
[325289318,1714683060934,-500.0,0.0003041,2]
[325289319,1714683060944,-500.0,0.0003041,2]
[325289320,1714683060955,-500.0,0.0003041,2]
[325289321,1714683060964,-500.0,0.0003041,2]
[325289322,1714683060974,-6157.93,0.0003041,2]
[325289323,1714683060983,-500.0,0.0003041,2]
[325289324,1714683060994,-3794.04,0.0003041,2]
[325289325,1714683061003,-4778.95,0.0003041,2]
[325289326,1714683061013,-500.0,0.0003041,2]
[325289327,1714683061023,-1958.68,0.0003041,2]
[325289328,1714683061033,-500.0,0.0003041,2]
[325289329,1714683061042,-1798.53,0.0003041,2]
[325289330,1714683061051,-500.0,0.0003041,2]
[325289331,1714683061061,-3158.22,0.0003041,2]
[325289332,1714683061070,-621.64,0.0003041,2]
[325289333,1714683061080,-500.0,0.0003041,2]
[325289334,1714683061090,-150.0,0.0003041,2]
[325289335,1714683061100,-500.0,0.0003041,2]
[325289336,1714683061109,-500.0,0.0003041,2]
[325289337,1714683061119,-500.0,0.0003041,2]
[325289338,1714683061128,-500.0,0.0003041,2]
[325289339,1714683061138,-500.0,0.0003041,2]
[325289340,1714683061148,-500.0,0.0003041,2]
[325289341,1714683061158,-500.0,0.0003041,2]
[325289342,1714683061168,-11517.06,0.0003041,2]
[325289343,1714683061179,-500.0,0.0003041,2]
[325289344,1714683061188,-1917.03,0.0003041,2]
[325289345,1714683061198,-500.0,0.0003041,2]
[325289346,1714683061207,-500.0,0.0003041,2]
[325289347,1714683061216,-500.0,0.0003041,2]
[325289348,1714683061226,-600.44,0.0003041,2]
[325289349,1714683061235,-2389.26,0.0003041,2]
[325289350,1714683061245,-3409.08,0.0003041,2]
[325289351,1714683061254,-500.0,0.0003041,2]
[325289352,1714683061264,-500.0,0.0003041,2]
[325289353,1714683061273,-500.0,0.0003041,2]
[325289354,1714683061284,-895.45,0.0003041,2]
[325289355,1714683061294,-1993.8,0.0003041,2]
[325289356,1714683061305,-1050.96,0.0003041,2]
[325289357,1714683061314,-500.0,0.0003041,2]
[325289358,1714683061324,-593.18,0.0003041,2]
[325289359,1714683061335,-916.18,0.0003041,2]
[325289360,1714683061345,-5393.45,0.0003041,2]
[325289361,1714683061355,-1471.71,0.0003041,2]
[325289362,1714683061364,-6233.63,0.0003041,2]
[325289363,1714683061374,-500.0,0.0003041,2]
[325289364,1714683061384,-1072.35,0.0003041,2]
[325289365,1714683061393,-1911.42,0.0003041,2]
[325289366,1714683061403,-6276.9,0.0003041,2]
[325289367,1714683061412,-4201.34,0.0003041,2]
[325289368,1714683061422,-500.0,0.0003041,2]
[325289369,1714683061431,-12002.08,0.0003041,2]
[325289370,1714683061441,-525.65,0.0003041,2]
[325289371,1714683061451,-500.0,0.0003041,2]
[325289372,1714683061461,-500.0,0.0003041,2]
[325289373,1714683061471,-2569.46,0.0003041,2]
[325289374,1714683061480,-3019.6,0.0003041,2]
[325289375,1714683061489,-581.68,0.0003041,2]
[325289376,1714683061499,-1639.18,0.0003041,2]
[325289377,1714683061508,-500.0,0.0003041,2]
[325289378,1714683061518,-4291.9,0.0003041,2]
[325289379,1714683061528,-500.0,0.0003041,2]
[325289380,1714683061537,-1823.22,0.0003041,2]
[325289381,1714683061546,-1481.76,0.0003041,2]
[325289382,1714683061556,-5680.57,0.0003041,2]
[325289383,1714683061565,-500.0,0.0003041,2]
[325289384,1714683061575,-2091.1,0.0003041,2]
[325289385,1714683061588,-500.0,0.0003041,2]
[325289386,1714683061598,-1422.07,0.0003041,2]
[325289387,1714683061608,-500.0,0.0003041,2]
[325289388,1714683061618,-905.42,0.0003041,2]
[325289389,1714683061628,-2863.86,0.0003041,2]
[325289390,1714683061637,-500.0,0.0003041,2]
[325289391,1714683061647,-3291.58,0.0003041,2]
[325289392,1714683061656,-500.0,0.0003041,2]
[325289393,1714683061666,-47604.18,0.0003041,2]
[325289394,1714683061675,-1224.27,0.0003041,2]
[325289395,1714683061685,-1855.65,0.0003041,2]
[325289396,1714683061695,-500.0,0.0003041,2]
[325289397,1714683061705,-500.0,0.0003041,2]
[325289398,1714683061715,-500.0,0.0003041,2]
[325289399,1714683061724,-1623.6,0.0003041,2]
[325289400,1714683061734,-500.0,0.0003041,2]
[325289401,1714683061743,-1802.62,0.0003041,2]
[325289402,1714683061753,-1810.9,0.0003041,2]
[325289403,1714683061768,-838.98,0.0003041,2]
[325289404,1714683061778,-2517.76,0.0003041,2]
[325289405,1714683061787,-1296.39,0.0003041,2]
[325289406,1714683061797,-851.37,0.0003041,2]
[325289407,1714683061806,-597.5,0.0003041,2]
[325289408,1714683061816,-500.0,0.0003041,2]
[325289409,1714683061825,-1070.42,0.0003041,2]
[325289410,1714683061839,-1926.04,0.0003041,2]
[325289411,1714683061848,-500.0,0.0003041,2]
[325289412,1714683061858,-2162.83,0.0003041,2]
[325289413,1714683061868,-500.0,0.0003041,2]
[325289414,1714683061878,-202.71001263,0.0003041,2]
[325289415,1714683061887,-500.0,0.0003041,2]
[325289416,1714683061897,-1566.25,0.0003041,2]
[325289417,1714683061907,-500.0,0.0003041,2]
[325289418,1714683061916,-1251.29,0.0003041,2]
[325289419,1714683061926,-500.0,0.0003041,2]
[325289420,1714683061935,-2063.74,0.0003041,2]
[325289421,1714683061944,-9265.55,0.0003041,2]
[325289422,1714683061954,-754.44,0.0003041,2]
[325289423,1714683061963,-500.0,0.0003041,2]
[325289424,1714683061972,-500.0,0.0003041,2]
[325289425,1714683061981,-500.0,0.0003041,2]
[325289426,1714683061990,-9897.76,0.0003041,2]
[325289427,1714683061999,-1289.93,0.0003041,2]
[325289428,1714683062009,-500.0,0.0003041,2]
[325289429,1714683062018,-8380.0,0.0003041,2]
[325289430,1714683062028,-1121.93,0.0003041,2]
[325289431,1714683062037,-1959.02,0.0003041,2]
[325289432,1714683062048,-1321.59,0.0003041,2]
[325289433,1714683062057,-2879.67,0.0003041,2]
[325289434,1714683062066,-5403.02,0.0003041,2]
[325289435,1714683062076,-10134.49,0.0003041,2]
[325289436,1714683062089,-1940.11,0.0003041,2]
[325289437,1714683062098,-1858.84,0.0003041,2]
[325289438,1714683062108,-500.0,0.0003041,2]
[325289439,1714683062118,-500.0,0.0003041,2]
[325289440,1714683062127,-4682.26,0.0003041,2]
[325289441,1714683062136,-4098.44,0.0003041,2]
[325289442,1714683062146,-500.0,0.0003041,2]
[325289443,1714683062155,-775.82,0.0003041,2]
[325289444,1714683062167,-1367.68,0.0003041,2]
[325289445,1714683062180,-500.0,0.0003041,2]
[325289446,1714683062192,-500.0,0.0003041,2]
[325289447,1714683062202,-500.0,0.0003041,2]
[325289448,1714683062213,-557.56,0.0003041,2]
[325289449,1714683062224,-752.66,0.0003041,2]
[325289450,1714683062235,-500.0,0.0003041,2]
[325289451,1714683062245,-500.0,0.0003041,2]
[325289452,1714683062254,-500.0,0.0003041,2]
[325289453,1714683062264,-718.62,0.0003041,2]
[325289454,1714683062274,-1352.07,0.0003041,2]
[325289455,1714683062284,-1633.77,0.0003041,2]
[325289456,1714683062294,-1044.52,0.0003041,2]
[325289457,1714683062304,-500.0,0.0003041,2]
[325289458,1714683062314,-500.0,0.0003041,2]
[325289459,1714683062324,-5944.95,0.0003041,2]
[325289460,1714683062334,-500.0,0.0003041,2]
[325289461,1714683062344,-2273.89,0.0003041,2]